[Event "ETCC Open 2023"]
[Site "Budva"]
[Date "2023.11.12"]
[Round "2.59"]
[White "Pultinevicius, Paulius"]
[Black "Pecurica, Milos"]
[Result "1-0"]
[ECO "E04"]
[WhiteElo "2589"]
[BlackElo "2342"]
[Annotator "TA"]
[PlyCount "43"]
[EventDate "2023.11.10"]
[EventType "team-tourn"]
[EventCountry "MNE"]
[SourceTitle "playchess.com"]
[Source "ChessBase"]
[SourceQuality "1"]
[WhiteTeam "Lithuania"]
[BlackTeam "Montenegro"]
[WhiteTeamCountry "LTU"]
[BlackTeamCountry "MNE"]
[TimeControl "40/5400+30:1800+30"]

{[%evp 12,43,11,-13,40,1,37,32,10,11,34,13,34,15,41,16,54,59,196,147,146,144,363,375,425,421,540,539,748,704,758,754,810,810]} 1. d4 {[%emt 0:00:03]} d5 {[%emt 0:00:09][%cal Bd7d5,Bd5c4][%mdl 32]} 2. Nf3 {[%emt 0:00:36]} Nf6 {[%emt 0:00:12]} 3. c4 {[%emt 0:00:21]} e6 {[%emt 0:00:16]} 4. g3 {[%emt 0:00:09]} Bb4+ {[%emt 0:02:47]} 5. Nbd2 {[%emt 0:01:38]} dxc4 {[%emt 0:02:37]} 6. Bg2 {[%emt 0:01:40]} O-O {[%emt 0:04:21]} 7. Qc2 {[%emt 0:00:16]} Nc6 {[%emt 0:06:48] E04: Open Catalan: 5 Nf3.} ({Black should try} 7... a5 $11) 8. O-O $5 {[%emt 0:07:09][%mdl 4] Exploring less charted territory.} Nxd4 {[%emt 0:13:13]} 9. Nxd4 {[%emt 0:00:06]} Qxd4 {[%emt 0:00:02] White is slightly better.} 10. Nxc4 {[%emt 0:00:09] [#]} Nd5 $146 {[%emt 0:06:59]} ({Predecessor:} 10... Qd8 11. Rd1 Qe7 12. a3 Bd6 13. Nxd6 cxd6 14. Bg5 Rd8 15. Rac1 {½-½ Sadzikowski,D (2504)-Bellahcene,B (2540) BL2-Sued 1920 2019 (7.3)}) 11. Rd1 {[%emt 0:06:46][%mdl 1024] White has compensation.} Qf6 {[%emt 0:03:15]} 12. a3 {[%emt 0:10:08]} Be7 {[%emt 0:02:28]} 13. Bd2 {[%emt 0:15:17][%cal Bc1d2,Bd2b4,Bb4f8][%mdl 32]} (13. e4 $5 {[%cal Re4d5]} Nb6 14. e5 $14) 13... Qg6 {[%emt 0:04:12]} 14. e4 $1 $36 {[%emt 0:04:29][%mdl 2048] White is pushing.} Bf6 {[%emt 0:07:48]} (14... f6 $14) 15. Rac1 {[%emt 0:16:18]} (15. Qa4 $18) 15... Nb6 $16 {[%emt 0:17:37]} 16. Bb4 {[%emt 0:00:25]} Nxc4 $2 {[%emt 0:03:36] This costs Black the game.} (16... Re8 $16) 17. Bxf8 $18 {[%emt 0:02:48]} ({Not} 17. Qxc4 Re8 $14) 17... Nxb2 {[%emt 0:02:32]} 18. Rd2 {[%emt 0:01:55] White is clearly winning.} h5 {[%emt 0:12:50] [#]} 19. Qxc7 $1 {[%emt 0:01:43]} e5 {[%emt 0:03:01]} (19... Bd7 20. Qxd7) 20. Be7 {[%emt 0:03:33]} Be6 {[%emt 0:01:56]} 21. Bxf6 {[%emt 0:01:13]} gxf6 {[%emt 0:01:28]} 22. Qxb7 {[%emt 0:00:12] Weighted Error Value: White=0.11 (very precise) /Black=0.62} 1-0

[Event "ETCC Open 2023"]
[Site "Budva"]
[Date "2023.11.12"]
[Round "2.60"]
[White "Djurovic, Peko"]
[Black "Klabis, Rokas"]
[Result "1/2-1/2"]
[ECO "C75"]
[WhiteElo "2344"]
[BlackElo "2412"]
[Annotator "ChessBase"]
[PlyCount "102"]
[EventDate "2023.11.10"]
[EventType "team-tourn"]
[EventCountry "MNE"]
[SourceTitle "playchess.com"]
[Source "ChessBase"]
[SourceQuality "1"]
[WhiteTeam "Montenegro"]
[BlackTeam "Lithuania"]
[WhiteTeamCountry "MNE"]
[BlackTeamCountry "LTU"]
[TimeControl "40/5400+30:1800+30"]

1. e4 {[%emt 0:00:23]} e5 {[%emt 0:00:14]} 2. Nf3 {[%emt 0:00:30]} Nc6 {[%emt 0:00:08]} 3. Bb5 {[%emt 0:00:53]} a6 {[%emt 0:00:14]} 4. Ba4 {[%emt 0:00:09]} d6 {[%emt 0:00:40]} 5. c3 {[%emt 0:04:50]} Bd7 {[%emt 0:00:18]} 6. O-O {[%emt 0:01:46]} Nge7 {[%emt 0:00:57]} 7. d4 {[%emt 0:03:37]} Ng6 {[%emt 0:00:30]} 8. Re1 {[%emt 0:10:32]} Be7 {[%emt 0:00:11]} 9. Nbd2 {[%emt 0:09:37]} O-O {[%emt 0:00:17]} 10. Nf1 {[%emt 0:02:14]} exd4 {[%emt 0:05:41]} 11. cxd4 {[%emt 0:01:27]} b5 {[%emt 0:00:05]} 12. Bc2 {[%emt 0:01:40]} Bg4 {[%emt 0:08:57]} 13. Be3 {[%emt 0:05:06]} Nb4 {[%emt 0:24:40]} 14. Bb1 {[%emt 0:31:53]} c5 {[%emt 0:00:46]} 15. d5 {[%emt 0:04:28]} a5 {[%emt 0:01:42]} 16. h3 {[%emt 0:02:18]} Bxf3 {[%emt 0:12:44]} 17. Qxf3 {[%emt 0:00:02]} Bf6 {[%emt 0:00:09]} 18. Qe2 {[%emt 0:02:46]} c4 {[%emt 0:01:27]} 19. a3 {[%emt 0:08:55]} Na6 {[%emt 0:01:08]} 20. a4 {[%emt 0:00:44]} b4 {[%emt 0:06:15]} 21. Qxc4 {[%emt 0:00:52]} Bxb2 {[%emt 0:00:16]} 22. Ra2 {[%emt 0:00:01]} Bc3 {[%emt 0:02:37]} 23. Bd2 {[%emt 0:01:41]} Qf6 {[%emt 0:03:37]} 24. Ne3 {[%emt 0:04:12]} Rfc8 {[%emt 0:01:35]} 25. Qb5 {[%emt 0:01:03]} Rcb8 {[%emt 0:04:47]} 26. Qe2 {[%emt 0:01:15]} b3 {[%emt 0:07:40]} 27. Bxc3 {[%emt 0:00:34]} Qxc3 {[%emt 0:00:06]} 28. Rd2 {[%emt 0:00:14]} Nc5 {[%emt 0:00:22]} 29. Nf5 {[%emt 0:00:45]} Qf6 {[%emt 0:07:24]} 30. Rd4 {[%emt 0:00:31]} Re8 {[%emt 0:01:20]} 31. Qd2 {[%emt 0:00:31]} Rab8 {[%emt 0:04:24]} 32. f4 {[%emt 0:00:09]} b2 {[%emt 0:00:13]} 33. Rc4 {[%emt 0:00:04]} Qd8 {[%emt 0:02:38]} 34. e5 {[%emt 0:01:12]} Qb6 {[%emt 0:00:34]} 35. Kh2 {[%emt 0:00:34]} dxe5 {[%emt 0:01:32]} 36. fxe5 {[%emt 0:00:01]} Nxe5 {[%emt 0:00:58]} 37. Qc3 {[%emt 0:00:51]} Ncd7 {[%emt 0:00:35]} 38. Rc7 {[%emt 0:00:36]} Qb4 {[%emt 0:00:56]} 39. Qg3 {[%emt 0:00:31]} g6 {[%emt 0:00:33]} 40. Rf1 {[%emt 0:00:01]} Qf8 {[%emt 0:00:41]} 41. d6 {[%emt 0:13:09]} Kh8 {[%emt 0:04:41]} 42. Ne7 {[%emt 0:04:21]} Rb6 {[%emt 0:06:03]} 43. Ba2 {[%emt 0:06:31]} Rxd6 {[%emt 0:11:25]} 44. Rxd7 {[%emt 0:02:44]} Nxd7 {[%emt 0:00:08]} 45. Rxf7 {[%emt 0:02:46]} Qxf7 {[%emt 0:01:34]} 46. Bxf7 {[%emt 0:00:02]} b1=Q {[%emt 0:00:15]} 47. Bxe8 {[%emt 0:00:31]} Qd3 {[%emt 0:01:28]} 48. Qh4 {[%emt 0:03:02]} Kg7 {[%emt 0:03:44]} 49. Nf5+ {[%emt 0:01:04]} gxf5 {[%emt 0:04:37]} 50. Qe7+ {[%emt 0:00:09]} Kh6 {[%emt 0:00:04]} 51. Qh4+ {[%emt 0:00:05]} Kg7 {[%emt 0:00:03]} 1/2-1/2

[Event "ETCC Open 2023"]
[Site "Budva"]
[Date "2023.11.12"]
[Round "2.61"]
[White "Kalezic, Blazo"]
[Black "Schitco, Ivan"]
[Result "0-1"]
[ECO "C79"]
[WhiteElo "2401"]
[BlackElo "2503"]
[Annotator "ChessBase"]
[PlyCount "82"]
[EventDate "2023.11.10"]
[EventType "team-tourn"]
[EventCountry "MNE"]
[SourceTitle "playchess.com"]
[Source "ChessBase"]
[SourceQuality "1"]
[WhiteTeam "Montenegro"]
[BlackTeam "Moldova"]
[WhiteTeamCountry "MNE"]
[BlackTeamCountry "MDA"]
[TimeControl "40/5400+30:1800+30"]

1. e4 {[%emt 0:00:03]} e5 {[%emt 0:00:09]} 2. Nf3 {[%emt 0:00:10]} Nc6 {[%emt 0:00:17]} 3. Bb5 {[%emt 0:00:13]} a6 {[%emt 0:00:06]} 4. Ba4 {[%emt 0:00:06]} Nf6 {[%emt 0:00:11]} 5. O-O {[%emt 0:00:12]} d6 {[%emt 0:00:10]} 6. Bxc6+ {[%emt 0:05:10]} bxc6 {[%emt 0:00:06]} 7. Re1 {[%emt 0:00:24]} Bg4 {[%emt 0:00:47]} 8. h3 {[%emt 0:01:06]} Bxf3 {[%emt 0:00:05]} 9. Qxf3 {[%emt 0:00:09]} Nd7 {[%emt 0:00:04]} 10. d3 {[%emt 0:01:30]} g6 {[%emt 0:02:04]} 11. Nc3 {[%emt 0:05:36]} Bg7 {[%emt 0:00:42]} 12. Ne2 {[%emt 0:00:38]} O-O {[%emt 0:01:37]} 13. Ng3 {[%emt 0:01:59]} Nc5 {[%emt 0:01:55]} 14. Be3 {[%emt 0:02:26]} Ne6 {[%emt 0:00:29]} 15. c3 {[%emt 0:01:21]} Rb8 {[%emt 0:05:53]} 16. b3 {[%emt 0:06:04]} c5 {[%emt 0:03:43]} 17. Rab1 {[%emt 0:02:34]} a5 {[%emt 0:03:58]} 18. a3 {[%emt 0:11:58]} Qd7 {[%emt 0:07:25]} 19. h4 {[%emt 0:07:49]} h5 {[%emt 0:05:33]} 20. Nf5 {[%emt 0:04:58]} gxf5 {[%emt 0:07:18]} 21. exf5 {[%emt 0:02:12]} Nf4 {[%emt 0:02:04]} 22. Bxf4 {[%emt 0:00:34]} exf4 {[%emt 0:04:00]} 23. Qxh5 {[%emt 0:00:12]} Rbe8 {[%emt 0:03:49]} 24. Qg5 {[%emt 0:05:00]} Qd8 {[%emt 0:04:11]} 25. Qxf4 {[%emt 0:01:29]} Bxc3 {[%emt 0:00:43]} 26. Re3 {[%emt 0:05:43]} Kh7 {[%emt 0:03:01]} 27. Qg4 {[%emt 0:02:33]} Rxe3 {[%emt 0:02:39]} 28. fxe3 {[%emt 0:01:07]} Qf6 {[%emt 0:00:37]} 29. Rf1 {[%emt 0:00:42]} Rg8 {[%emt 0:01:05]} 30. Qh5+ {[%emt 0:05:31]} Kg7 {[%emt 0:00:45]} 31. Rf4 {[%emt 0:01:42]} Re8 {[%emt 0:06:17]} 32. Kf2 {[%emt 0:03:23]} Kf8 {[%emt 0:01:23]} 33. Ke2 {[%emt 0:09:24]} Bb2 {[%emt 0:01:27]} 34. g4 {[%emt 0:01:05]} Bc1 {[%emt 0:03:07]} 35. Rf3 {[%emt 0:06:00]} Qb2+ {[%emt 0:00:53]} 36. Kf1 {[%emt 0:00:10]} Bxe3 {[%emt 0:03:26]} 37. f6 {[%emt 0:01:10]} Qc1+ {[%emt 0:00:11]} 38. Kg2 {[%emt 0:00:03]} Qg1+ {[%emt 0:00:03]} 39. Kh3 {[%emt 0:00:11]} Qh1+ {[%emt 0:00:03]} 40. Kg3 {[%emt 0:00:10]} Bf4+ {[%emt 0:00:05]} 41. Kxf4 {[%emt 0:31:39]} Qh2+ {[%emt 0:30:05]} 0-1

[Event "ETCC Open 2023"]
[Site "Budva"]
[Date "2023.11.12"]
[Round "2.62"]
[White "Macovei, Andrei"]
[Black "Krivokapic, Marko"]
[Result "1-0"]
[ECO "B81"]
[WhiteElo "2446"]
[BlackElo "2386"]
[Annotator "ChessBase"]
[PlyCount "39"]
[EventDate "2023.11.10"]
[EventType "team-tourn"]
[EventCountry "MNE"]
[SourceTitle "playchess.com"]
[Source "ChessBase"]
[SourceQuality "1"]
[WhiteTeam "Moldova"]
[BlackTeam "Montenegro"]
[WhiteTeamCountry "MDA"]
[BlackTeamCountry "MNE"]
[TimeControl "40/5400+30:1800+30"]

1. e4 {[%emt 0:00:03]} c5 {[%emt 0:00:13]} 2. Nf3 {[%emt 0:00:18]} d6 {[%emt 0:00:22]} 3. d4 {[%emt 0:00:04]} cxd4 {[%emt 0:00:20]} 4. Nxd4 {[%emt 0:00:02]} Nf6 {[%emt 0:00:13]} 5. Nc3 {[%emt 0:00:16]} a6 {[%emt 0:00:30]} 6. h3 {[%emt 0:00:55]} e6 {[%emt 0:01:59]} 7. g4 {[%emt 0:00:09]} b5 {[%emt 0:04:37]} 8. Bg2 {[%emt 0:00:07]} Bb7 {[%emt 0:00:25]} 9. O-O {[%emt 0:00:04]} Nfd7 {[%emt 0:17:36]} 10. a4 {[%emt 0:00:04]} bxa4 {[%emt 0:03:11]} 11. Rxa4 {[%emt 0:00:07]} Nb6 {[%emt 0:01:04]} 12. Rb4 {[%emt 0:22:17]} N8d7 {[%emt 0:18:35]} 13. Nd5 {[%emt 0:26:36]} exd5 {[%emt 0:13:00]} 14. exd5 {[%emt 0:00:21]} Be7 {[%emt 0:00:48]} 15. Nc6 {[%emt 0:01:07]} Qc7 {[%emt 0:01:25]} 16. Re1 {[%emt 0:10:47]} Bxc6 {[%emt 0:15:42]} 17. dxc6 {[%emt 0:00:02]} Nc5 {[%emt 0:00:55]} 18. Qd4 {[%emt 0:16:09]} Kf8 {[%emt 0:12:51]} 19. Bf4 {[%emt 0:00:06]} Rb8 {[%emt 0:02:43]} 20. Qxc5 {[%emt 0:00:37]} 1-0

[Event "ETCC Open 2023"]
[Site "Budva"]
[Date "2023.11.12"]
[Round "2.63"]
[White "Draganic, Veljko"]
[Black "Bologan, Victor"]
[Result "0-1"]
[ECO "C41"]
[WhiteElo "2294"]
[BlackElo "2574"]
[Annotator "TA"]
[PlyCount "82"]
[EventDate "2023.11.10"]
[EventType "team-tourn"]
[EventCountry "MNE"]
[SourceTitle "playchess.com"]
[Source "ChessBase"]
[SourceQuality "1"]
[WhiteTeam "Montenegro"]
[BlackTeam "Moldova"]
[WhiteTeamCountry "MNE"]
[BlackTeamCountry "MDA"]
[TimeControl "40/5400+30:1800+30"]

{[%evp 17,82,42,49,29,36,11,12,-9,43,10,34,25,33,37,41,16,13,14,21,15,4,14,4,0,0,0,0,0,0,0,25,37,42,30,35,13,23,0,0,0,0,0,0,0,0,0,0,-145,-9,-11,-22,-885,-575,-542,-154,-1305,-1283,-1502,-834,-29987,-29988,-29988,-29989,-29996,-29990,-29990,-540]} 1. e4 {[%emt 0:00:04]} d6 {[%emt 0:00:10]} 2. d4 {[%emt 0:00:13]} Nf6 {[%emt 0:00:14]} 3. Nc3 {[%emt 0:00:07]} e5 {[%emt 0:00:05]} 4. Nf3 {[%emt 0:00:29]} Nbd7 {[%emt 0:00:07]} 5. Bc4 {[%emt 0:00:45]} Be7 {[%emt 0:00:05]} 6. O-O {[%emt 0:00:37]} O-O {[%emt 0:00:05]} 7. Re1 {[%emt 0:00:55]} c6 {[%emt 0:00:28]} 8. a4 {[%emt 0:00:26]} h6 {[%emt 0:01:00] is cutting edge theory.} 9. h3 {[%emt 0:00:56]} Re8 {[%emt 0:00:29]} 10. Ba2 {[%emt 0:03:35] C41: Philidor Defence.} Bf8 {[%emt 0:02:00]} 11. dxe5 {[%emt 0:03:23]} dxe5 {[%emt 0:00:53] [#]} 12. Be3 $146 {[%emt 0:04:26] The position is equal.} ({Predecessor:} 12. Nh4 Nc5 13. Qf3 Be6 14. Nf5 Bxa2 15. Rxa2 Ne6 16. Qg3 Kh7 17. Qxe5 g6 18. Rd1 Nd7 19. Nd6 Nxe5 20. Nxf7 Qf6 21. Nxe5 Qxe5 {0-1 Meissner,F (2362)-Petrova,I (2077) Titled Tuesday intern op 06th Oct blitz 2020 (2)}) 12... Nh7 {[%emt 0:04:33]} (12... Bb4 $11) 13. Ne2 {[%emt 0:11:39]} Qf6 {[%emt 0:07:06]} 14. Ng3 {[%emt 0:02:00]} Nc5 {[%emt 0:02:23]} 15. a5 {[%emt 0:20:05]} g6 {[%emt 0:01:36]} 16. Qd2 {[%emt 0:15:31]} Bxh3 {[%emt 0:23:15][%cal Oh6h5][%mdl 64] [#] Deflection} 17. Bxh6 {[%emt 0:02:24]} Rad8 {[%emt 0:04:02]} 18. Qe3 {[%emt 0:00:52] Strongly threatening Bxf8.} Bxh6 {[%emt 0:01:07]} 19. Qxh6 {[%emt 0:02:11]} Bg4 {[%emt 0:00:29]} 20. Nh2 {[%emt 0:05:23]} Be6 {[%emt 0:03:49]} 21. Qe3 {[%emt 0:01:38] Prevents Qf4} Qe7 {[%emt 0:08:36]} 22. Nf3 {[%emt 0:06:28]} Bxa2 {[%emt 0:07:28]} 23. Rxa2 {[%emt 0:00:04]} Rd7 {[%emt 0:02:13]} 24. b4 {[%emt 0:01:48][%cal Bb2b4,Bb4b5][%mdl 32]} Na6 {[%emt 0:01:11]} 25. c3 {[%emt 0:00:56]} ({Much worse is} 25. Qxa7 Nxb4 26. Rb2 c5 $15) 25... c5 {[%emt 0:00:35]} 26. b5 {[%emt 0:02:04]} Nc7 {[%emt 0:00:12]} 27. c4 {[%emt 0:05:38]} (27. Rb2 $5 {[%cal Rb5b6]}) 27... Red8 {[%emt 0:00:58]} 28. Nf1 {[%emt 0:01:29]} Rd3 {[%emt 0:01:48]} 29. Qh6 {[%emt 0:01:03]} Rxf3 {[%emt 0:03:59]} 30. gxf3 {[%emt 0:00:12]} Ng5 $36 {[%emt 0:00:08][%mdl 2048] Black fights for an advantage.} 31. Kg2 {[%emt 0:02:20]} Qf6 {[%emt 0:06:54]} 32. Ra3 {[%emt 0:02:23]} (32. Nd2 $11) 32... Nce6 $17 {[%emt 0:00:19][%cal Bc7e6,Be6f4,Bf4h5][%mdl 1056] And now ...Nf4+ would win. Black has strong compensation.} 33. Nh2 {[%emt 0:00:47]} Nf4+ {[%emt 0:03:07]} 34. Kg3 $2 {[%emt 0:00:25][%mdl 8192]} (34. Kh1 $11) 34... Nh5+ {[%emt 0:02:37] Excellent horsemanship.} ({Stronger than} 34... Nd3 35. Rd1 Qf4+ 36. Kg2 $11) 35. Kg2 {[%emt 0:00:07] [#]} Qf4 {[%emt 0:00:27]} (35... Ne6 $1 $19 {[%cal Re6f4] has better winning chances. White must now prevent ...Nef4+.} 36. Rg1 Qh4) 36. Kh1 $2 {[%emt 0:01:25] This costs White the game.} (36. Ng4 $17 Nxf3 37. Qxf4 Nxe1+ 38. Kf1 exf4 39. Kxe1) 36... Qh4 $19 {[%emt 0:01:56]} 37. f4 {[%emt 0:01:45]} exf4 {[%emt 0:03:13]} 38. Kg1 {[%emt 0:01:18]} Rd2 {[%emt 0:00:40] Black mates.} 39. Rf1 {[%emt 0:00:12]} f3 {[%emt 0:00:54][%mdl 64] Decoy} 40. Nxf3 {[%emt 0:00:53]} Qg4+ {[%emt 0:00:12]} (40... Qxe4 $2 41. Nxg5 Qf5 42. a6 $18) 41. Kh2 {[%emt 0:30:18]} Qg3+ {[%emt 0:30:23] Artfully played by Bologan.   Weighted Error Value: White=0.79/Black=0.48} 0-1

[Event "ETCC Open 2023"]
[Site "Budva"]
[Date "2023.11.12"]
[Round "2.64"]
[White "Lashkin, Jegor"]
[Black "Miletic, Vuk"]
[Result "1-0"]
[ECO "D30"]
[WhiteElo "2457"]
[BlackElo "2190"]
[Annotator "ChessBase"]
[PlyCount "57"]
[EventDate "2023.11.10"]
[EventType "team-tourn"]
[EventCountry "MNE"]
[SourceTitle "playchess.com"]
[Source "ChessBase"]
[SourceQuality "1"]
[WhiteTeam "Moldova"]
[BlackTeam "Montenegro"]
[WhiteTeamCountry "MDA"]
[BlackTeamCountry "MNE"]
[TimeControl "40/5400+30:1800+30"]

1. d4 {[%emt 0:00:28]} d5 {[%emt 0:00:17]} 2. c4 {[%emt 0:00:48]} e6 {[%emt 0:00:11]} 3. Nf3 {[%emt 0:00:21]} a6 {[%emt 0:06:44]} 4. Bg5 {[%emt 0:00:59]} Be7 {[%emt 0:00:04]} 5. Bxe7 {[%emt 0:00:13]} Qxe7 {[%emt 0:00:04]} 6. Nbd2 {[%emt 0:00:31]} Nf6 {[%emt 0:00:05]} 7. g3 {[%emt 0:02:04]} b6 {[%emt 0:01:21]} 8. Rc1 {[%emt 0:04:21]} Bb7 {[%emt 0:07:16]} 9. Bg2 {[%emt 0:00:52]} O-O {[%emt 0:06:08]} 10. O-O {[%emt 0:05:46]} Rc8 {[%emt 0:08:42]} 11. cxd5 {[%emt 0:05:26]} exd5 {[%emt 0:08:53]} 12. Qb3 {[%emt 0:16:19]} Nbd7 {[%emt 0:14:07]} 13. e3 {[%emt 0:05:50]} Rab8 {[%emt 0:05:38]} 14. Rfd1 {[%emt 0:03:03]} c5 {[%emt 0:03:32]} 15. Qa3 {[%emt 0:05:38]} Qe6 {[%emt 0:08:37]} 16. dxc5 {[%emt 0:04:53]} bxc5 {[%emt 0:00:06]} 17. Nb3 {[%emt 0:03:13]} Qb6 {[%emt 0:00:38]} 18. Rc2 {[%emt 0:02:04]} Rc7 {[%emt 0:10:20]} 19. Rdc1 {[%emt 0:05:11]} Ne4 {[%emt 0:03:41]} 20. Nfd2 {[%emt 0:10:18]} Nxd2 {[%emt 0:04:25]} 21. Rxd2 {[%emt 0:01:49]} c4 {[%emt 0:09:08]} 22. Na5 {[%emt 0:03:14]} Nf6 {[%emt 0:00:25]} 23. Nxb7 {[%emt 0:01:19]} Qxb7 {[%emt 0:00:13]} 24. Qa5 {[%emt 0:01:44]} g6 {[%emt 0:01:24]} 25. Qc3 {[%emt 0:04:01]} Qb6 {[%emt 0:00:28]} 26. Bxd5 {[%emt 0:00:42]} Rd7 {[%emt 0:00:11]} 27. Rcd1 {[%emt 0:01:53]} Rbd8 {[%emt 0:00:42]} 28. Bxc4 {[%emt 0:01:05]} Ne4 {[%emt 0:00:38]} 29. Bxf7+ {[%emt 0:00:34]} 1-0

[Event "ETCC Open 2023"]
[Site "Budva"]
[Date "2023.11.12"]
[Round "2.65"]
[White "Nielsen, Hogni Egilstoft"]
[Black "Georgiadis, Nico"]
[Result "1/2-1/2"]
[ECO "B51"]
[WhiteElo "2387"]
[BlackElo "2556"]
[Annotator "RC"]
[PlyCount "71"]
[EventDate "2023.11.10"]
[EventType "team-tourn"]
[EventCountry "MNE"]
[SourceTitle "playchess.com"]
[Source "ChessBase"]
[SourceQuality "1"]
[WhiteTeam "Faroe Islands"]
[BlackTeam "Switzerland"]
[WhiteTeamCountry "FAI"]
[BlackTeamCountry "SUI"]
[TimeControl "40/5400+30:1800+30"]

1. e4 {[%emt 0:00:15]} c5 {[%emt 0:00:09]} 2. Nf3 {[%emt 0:00:28]} d6 {[%emt 0:00:07]} 3. Bb5+ {[%emt 0:00:59]} Nd7 {[%emt 0:00:08]} 4. O-O {[%emt 0:00:35]} a6 {[%emt 0:00:09]} 5. Bd3 {[%emt 0:00:31]} Ngf6 {[%emt 0:00:33]} 6. c3 {[%emt 0:00:53]} e6 {[%emt 0:03:15]} 7. Bc2 {[%emt 0:01:56]} b5 {[%emt 0:00:30]} 8. d4 {[%emt 0:00:54]} Bb7 {[%emt 0:00:20]} 9. Re1 {[%emt 0:01:55]} Be7 {[%emt 0:00:31]} 10. Nbd2 {[%emt 0:05:50]} Qc7 {[%emt 0:02:49]} 11. Nf1 {[%emt 0:06:35]} Rc8 {[%emt 0:08:13]} 12. Bd3 {[%emt 0:01:36]} O-O {[%emt 0:05:51]} 13. Ng3 {[%emt 0:02:47]} Rfe8 {[%emt 0:12:22]} 14. h3 {[%emt 0:09:19]} Bf8 {[%emt 0:02:33]} 15. Be3 {[%emt 0:09:09]} e5 {[%emt 0:08:31]} 16. d5 {[%emt 0:06:10]} c4 {[%emt 0:08:56]} 17. Bc2 {[%emt 0:00:18]} g6 {[%emt 0:00:06]} 18. Nh2 {[%emt 0:07:03]} h5 {[%emt 0:01:12]} 19. Nf3 {[%emt 0:07:33]} Nc5 {[%emt 0:01:39]} 20. Qd2 {[%emt 0:05:56]} Bg7 {[%emt 0:01:15]} 21. Bh6 {[%emt 0:02:12]} Bh8 {[%emt 0:03:21]} 22. Nh4 {[%emt 0:09:11]} Qd8 {[%emt 0:09:12]} 23. Bg5 {[%emt 0:05:43]} Qb6 {[%emt 0:04:16]} 24. Nhf5 {[%emt 0:02:24]} Ncd7 {[%emt 0:03:54]} 25. Be3 {[%emt 0:03:24]} Qc7 {[%emt 0:00:25]} 26. Nh6+ {[%emt 0:00:19]} Kf8 {[%emt 0:01:23]} 27. f4 {[%emt 0:00:52]} exf4 {[%emt 0:01:35]} 28. Bxf4 {[%emt 0:00:19]} h4 {[%emt 0:07:40]} 29. Ngf5 {[%emt 0:01:32]} gxf5 {[%emt 0:00:10]} 30. Nxf5 {[%emt 0:00:15]} Ne5 {[%emt 0:01:44]} 31. Bxe5 {[%emt 0:05:09]} Rxe5 {[%emt 0:00:05]} 32. Qh6+ {[%emt 0:00:15]} Kg8 {[%emt 0:00:06]} 33. Qg5+ {[%emt 0:00:25]} Kf8 {[%emt 0:00:10]} 34. Qh6+ {[%emt 0:01:56]} Kg8 {[%emt 0:00:05]} 35. Qg5+ {[%emt 0:00:51]} Kf8 {[%emt 0:00:05]} 36. Qh6+ {[%emt 0:02:11]} 1/2-1/2

[Event "ETCC Open 2023"]
[Site "Budva"]
[Date "2023.11.12"]
[Round "2.66"]
[White "Pelletier, Yannick"]
[Black "Poulsen, Martin"]
[Result "1-0"]
[ECO "D93"]
[WhiteElo "2505"]
[BlackElo "2291"]
[Annotator "ChessBase"]
[PlyCount "53"]
[EventDate "2023.11.10"]
[EventType "team-tourn"]
[EventCountry "MNE"]
[SourceTitle "playchess.com"]
[Source "ChessBase"]
[SourceQuality "1"]
[WhiteTeam "Switzerland"]
[BlackTeam "Faroe Islands"]
[WhiteTeamCountry "SUI"]
[BlackTeamCountry "FAI"]
[TimeControl "40/5400+30:1800+30"]

1. d4 {[%emt 0:00:07]} Nf6 {[%emt 0:00:29]} 2. c4 {[%emt 0:00:24]} c6 {[%emt 0:00:25]} 3. Nf3 {[%emt 0:01:48]} d5 {[%emt 0:04:35]} 4. Qc2 {[%emt 0:01:43]} g6 {[%emt 0:01:02]} 5. Bf4 {[%emt 0:00:14]} Bg7 {[%emt 0:02:51]} 6. e3 {[%emt 0:00:25]} O-O {[%emt 0:02:37]} 7. Nc3 {[%emt 0:00:47]} a6 {[%emt 0:10:45]} 8. h3 {[%emt 0:11:58]} Bf5 {[%emt 0:05:19]} 9. Qb3 {[%emt 0:13:07]} b5 {[%emt 0:11:43]} 10. cxd5 {[%emt 0:00:17]} cxd5 {[%emt 0:02:02]} 11. Ne5 {[%emt 0:00:07]} Be6 {[%emt 0:02:38]} 12. Qa3 {[%emt 0:18:18]} Nfd7 {[%emt 0:07:29]} 13. Bxb5 {[%emt 0:03:35]} Nxe5 {[%emt 0:01:47]} 14. Bxe5 {[%emt 0:00:07]} Bxe5 {[%emt 0:00:40]} 15. dxe5 {[%emt 0:00:05]} Qc7 {[%emt 0:04:20]} 16. O-O {[%emt 0:10:05]} axb5 {[%emt 0:09:38]} 17. Qxa8 {[%emt 0:00:10]} Nc6 {[%emt 0:02:43]} 18. Nxb5 {[%emt 0:07:07]} Qd7 {[%emt 0:03:25]} 19. Qa4 {[%emt 0:00:05]} Nxe5 {[%emt 0:01:21]} 20. Nc3 {[%emt 0:02:57]} Qc8 {[%emt 0:05:06]} 21. Rfd1 {[%emt 0:03:06]} Rd8 {[%emt 0:04:18]} 22. Rac1 {[%emt 0:02:56]} Nc4 {[%emt 0:01:16]} 23. Nxd5 {[%emt 0:07:09]} Bxd5 {[%emt 0:08:17]} 24. Rxc4 {[%emt 0:04:02]} Bxc4 {[%emt 0:01:07]} 25. Rxd8+ {[%emt 0:00:05]} Qxd8 {[%emt 0:00:07]} 26. Qxc4 {[%emt 0:00:03]} Qd2 {[%emt 0:00:48]} 27. Qc8+ {[%emt 0:00:10]} 1-0